Workbook

Sheet MYP, MSS
B1: Artturi Paavola | E1: 8.11.2003 Reisjärvi
B2: YKKÖSPESIS | E2: Runkosarja | L2: Runkosarja TOP-10 | Q2: Jatkosarjat | X2: SUOMENSARJA | AA2: Runkosarja | AH2: Runkosarja TOP-10 | AM2: Jatkosarjat
B3: Vuosi | C3: Sija | D3: Seura | E3: OTT | F3: KUN | G3: LÖI | H3: TOI | I3: KL | J3: KL-% | L3: LÖI | M3: TOI | N3: L+T | O3: KL | Q3: OTT | R3: KUN | S3: LÖI | T3: TOI | U3: KL | V3: KL-% | X3: Vuosi | Y3: Sija | Z3: Seura | AA3: OTT | AB3: KUN | AC3: LÖI | AD3: TOI | AE3: KL | AF3: KL-% | AH3: LÖI | AI3: TOI | AJ3: L+T | AK3: KL | AM3: OTT | AN3: KUN | AO3: LÖI | AP3: TOI | AQ3: KL | AR3: KL-%
X4: 2019 | Y4: 1. | Z4: HP-K | AA4: 5 | AB4: 0 | AC4: 0 | AD4: 4 | AE4: 11 | AF4: 47.8 % | AG4: 23 | AM4: 6 | AN4: 1 | AO4: 1 | AP4: 3 | AQ4: 16 | AR4: 39.0 % | AS4: 41
X5: 2020 | Y5: 2. | Z5: HP-K | AA5: 5 | AB5: 1 | AC5: 7 | AD5: 3 | AE5: 22 | AF5: 66.7 % | AG5: 33 | AM5: 1 | AN5: 1 | AO5: 2 | AP5: 1 | AQ5: 5 | AR5: 83.3 % | AS5: 6
X6: 2021 | Y6: 1. | Z6: HP-K | AA6: 18 | AB6: 1 | AC6: 21 | AD6: 18 | AE6: 75 | AF6: 61.5 % | AG6: 122 | AM6: 7 | AN6: 0 | AO6: 1 | AP6: 8 | AQ6: 37 | AR6: 68.5 % | AS6: 54
B7: 2022 | C7: 12. | D7: HP-K | E7: 23 | F7: 0 | G7: 0 | H7: 5 | I7: 47 | J7: 38.2 % | K7: 123 | Q7: 4 | R7: 0 | S7: 0 | T7: 1 | U7: 8 | V7: 42.1 % | W7: 19
X8: 2023 | Y8: 1. | Z8: YK | AA8: 16 | AB8: 5 | AC8: 26 | AD8: 26 | AE8: 68 | AF8: 66.7 % | AG8: 102 | AH8: 4. | AI8: 6. | AJ8: 3. | AL8: 1 | AM8: 8 | AN8: 0 | AO8: 5 | AP8: 7 | AQ8: 24 | AR8: 47.1 % | AS8: 51
B9: YHTEENSÄ | E9: =SUM(E4:E8) -> 23 | F9: =SUM(F4:F8) -> 0 | G9: 0 | H9: 5 | I9: 47 | J9: =PRODUCT(I9/K9) -> 38.2 % | K9: =SUM(K4:K8) -> 123 | Q9: =SUM(Q4:Q8) -> 4 | R9: =SUM(R4:R8) -> 0 | S9: 0 | T9: 1 | U9: 8 | V9: =PRODUCT(U9/W9) -> 42.1 % | W9: =SUM(W4:W8) -> 19 | X9: YHTEENSÄ | AA9: =SUM(AA4:AA8) -> 44 | AB9: =SUM(AB4:AB8) -> 7 | AC9: 54 | AD9: 51 | AE9: 176 | AF9: =PRODUCT(AE9/AG9) -> 62.9 % | AG9: 280 | AM9: =SUM(AM4:AM8) -> 22 | AN9: =SUM(AN4:AN8) -> 2 | AO9: 9 | AP9: 19 | AQ9: 82 | AR9: =PRODUCT(AQ9/AS9) -> 53.9 % | AS9: =SUM(AS4:AS8) -> 152
B11: KAIKKI OTTELUT | E11: OTT | F11: KUN | G11: LÖI | H11: TOI | I11: KL | J11: KL-% | L11: ka/L | M11: ka/T | N11: ka/l+t | O11: ka/kl | R11: Seurat | T11: Pilke = Reisjärven Pilke (1945), kasvattajaseura
B12: SUPERPESIS | E12: 0 | F12: 0 | G12: 0 | H12: 0 | I12: 0 | J12: 0.0 % | K12: 0 | L12: 0.00 | M12: 0.00 | N12: 0.00 | O12: 0.00 | T12: HP-K = Haapajärven Pesä-Kiilat (1990)
B13: YKKÖSPESIS | E13: =PRODUCT(E9+Q9) -> 27 | F13: =PRODUCT(F9+R9) -> 0 | G13: =PRODUCT(G9+S9) -> 0 | H13: =PRODUCT(H9+T9) -> 6 | I13: =PRODUCT(I9+U9) -> 55 | J13: =PRODUCT(I13/K13) -> 38.7 % | K13: =PRODUCT(K9+W9) -> 142 | L13: =PRODUCT((F13+G13)/E13) -> 0.00 | M13: =PRODUCT(H13/E13) -> 0.22 | N13: =PRODUCT((F13+G13+H13)/E13) -> 0.22 | O13: =PRODUCT(I13/E13) -> 2.04 | T13: YK = Ylivieskan Kuula (1909)
B14: SUOMENSARJA | E14: =PRODUCT(AA9+AM9) -> 66 | F14: =PRODUCT(AB9+AN9) -> 9 | G14: =PRODUCT(AC9+AO9) -> 63 | H14: =PRODUCT(AD9+AP9) -> 70 | I14: =PRODUCT(AE9+AQ9) -> 258 | J14: =PRODUCT(I14/K14) -> 59.7 % | K14: =PRODUCT(AG9+AS9) -> 432 | L14: =PRODUCT((F14+G14)/E14) -> 1.09 | M14: =PRODUCT(H14/E14) -> 1.06 | N14: =PRODUCT((F14+G14+H14)/E14) -> 2.15 | O14: =PRODUCT(I14/E14) -> 3.91
B15: YHTEENSÄ | E15: =SUM(E12:E14) -> 93 | F15: =SUM(F12:F14) -> 9 | G15: 63 | H15: 76 | I15: 313 | J15: =PRODUCT(I15/K15) -> 54.5 % | K15: =SUM(K12:K14) -> 574 | L15: =PRODUCT((F15+G15)/E15) -> 0.77 | M15: =PRODUCT(H15/E15) -> 0.82 | N15: =PRODUCT((F15+G15+H15)/E15) -> 1.59 | O15: =PRODUCT(I15/E15) -> 3.37
